Cogmind - Beta 9.3 *** ADVENTURER MODE // 2019.12.31 @ 19:37:02 // Winter2019/RPGLIKE Player: Tengoo Result: Self-destructed Performance ------------- Evolutions (2) 1000 Regions Visited (3) 600 Robots Destroyed (57) 285 Value Destroyed (1096) 1096 Prototype IDs (13) 260 Alien Tech Used (0) 0 Bonus (0) 0 TOTAL SCORE: 3241 Bonus ------- None Cogmind --------- Core Integrity 865/1000 Matter 300/300 Energy 460/460 System Corruption 0% Temperature Cool (81) Movement Walking (150) Ox1 Location -8/Materials Parts ------- > --- POWER (2) -------- Cooled Ion Engine Cooled Ion Engine > --- PROPULSION (2) --- Aluminum Leg Improved Aluminum Leg > --- UTILITY (4) ------ Signal Interpreter Advanced Targeting Computer Transmission Jammer > --- WEAPON (3) ------- Particle Gun Particle Gun Electrolaser > --- INVENTORY (7) ---- Cooling System Advanced Targeting Computer Hacking Suite Improved EM Shotgun Pulse Rifle Ion Cannon Improved Datajack Peak State ------------ > --- POWER ------------ Cooled Ion Engine Cooled Ion Engine > --- PROPULSION ------- Aluminum Leg Improved Aluminum Leg > --- UTILITY ---------- Signal Interpreter Advanced Targeting Computer Transmission Jammer > --- WEAPON ----------- Improved EM Shotgun Particle Gun Particle Gun > --- INVENTORY -------- Cooling System Advanced Targeting Computer Hacking Suite Pulse Rifle Electrolaser Ion Cannon Improved Datajack [Rating: 25] Favorites ----------- Power Cooled Ion Engine Engine Cooled Ion Engine Propulsion Aluminum Leg Leg Aluminum Leg Utility Signal Interpreter Device Transmission Jammer Processor Signal Interpreter Weapon Particle Gun Energy Gun Particle Gun Energy Cannon Particle Cannon Ballistic Gun Assault Rifle Ballistic Cannon Light Cannon Build | -11 -10 -9 -8 ------- Run | Scr Mat Mat Mat Slots Evolved 7 | . 4 1 2 Power 1 | . 1 . . Propulsion 1 | . 1 . . Utility 3 | . 1 . 2 Weapon 2 | . 1 1 . Parts Attached 31 | 3 3 22 3 Power 6 | 1 . 5 . Engine 6 | 1 . 5 . Core . | . . . . Reactor . | . . . . Propulsion 6 | 1 . 5 . Treads . | . . . . Leg 6 | 1 . 5 . Wheel . | . . . . Hover . | . . . . Flight . | . . . . Utility 6 | . 1 3 2 Device 2 | . . . 2 Storage . | . . . . Processor 4 | . 1 3 . Hackware . | . . . . Protection . | . . . . Artifact . | . . . . Weapon 13 | 1 2 9 1 Energy Gun 4 | . . 3 1 Energy Cannon 2 | . . 2 . Ballistic Gun 3 | 1 . 2 . Ballistic Cannon 4 | . 2 2 . Launcher . | . . . . Special Weapon . | . . . . Impact Weapon . | . . . . Slashing Weapon . | . . . . Piercing Weapon . | . . . . Special Melee Weapon . | . . . . Unidentified Prototypes 2 | . . 2 . Parts Lost . | . . . . Power . | . . . . Propulsion . | . . . . Utility . | . . . . Weapon . | . . . . Highest Loss Streak . | . . . . Average Slot Usage (%) 86 | . 54 84 98 Engine 17 | . 13 17 19 Leg 17 | . 13 17 19 Device 3 | . . . 9 Processor 19 | . 6 22 19 Energy Gun 15 | . . 10 29 Energy Cannon 4 | . . 7 . Ballistic Gun 3 | . 4 5 . Ballistic Cannon 3 | . 17 3 . Naked Turns . | . . . . Heaviest Build 27 | 7 11 26 27 Greatest Support 26 | 10 10 26 23 Greatest Overweight (x) 1 | . 1 1 1 Average Overweight (x) . | . . . 1 Largest Inventory Capacity 7 | . 3 6 7 Average Capacity 5 | . 2 5 6 Most Carried 7 | . 3 5 7 Average Carried 4 | . 1 4 6 Final Capacity 7 | . 3 6 7 Final Carried 7 | . 3 5 7 Class Distribution -------------------- 55% | Mutant 16% | Hauler-Gunner 16% | Hauler-Mutant 8% | Scavenger-Mutant Dominant Class ---------------- Mutant | -10/Materials Mutant | -9/Materials Hauler-Gunner | -8/Materials Resources | -11 -10 -9 -8 ----------- Run | Scr Mat Mat Mat Matter Collected 586 | 36 . 520 30 Remotely . | . . . . Salvage Created 1599 | . 67 833 699 Parts 120 | . 7 72 41 Haulers Intercepted 5 | . . 3 2 Recyclers Shooed 2 | . 1 1 . Parts Field Recycled . | . . . . Retrieved Matter . | . . . . Parts Self-Destructed . | . . . . Prevented . | . . . . Kills | -11 -10 -9 -8 ------- Run | Scr Mat Mat Mat Combat Hostiles Destroyed 34 | . 2 22 10 Guns 20 | . 1 10 9 Cannons 13 | . 1 12 . Classes Destroyed 10 | . 2 6 2 Worker 3 | . . 3 . Builder 4 | . . 4 . Tunneler 1 | . . . 1 Hauler 5 | . . 3 2 Recycler 3 | . . 1 2 Watcher 7 | . 2 2 3 Swarmer 17 | . 2 11 4 Grunt 9 | . . 8 1 Sentry 7 | . . 3 4 Hunter 1 | . . . 1 Best Kill Streak 8 | . 2 8 4 Combat Bots Only 7 | . 1 7 4 Max Kills in Single Turn 2 | . 1 2 2 Gunslinging 1 | . . . 1 Exploded . | . . . . Melee . | . . . . Uniques/NPCs Destroyed . | . . . . Combat | -11 -10 -9 -8 -------- Run | Scr Mat Mat Mat Damage Taken 1577 | . 377 777 423 Core 1286 | . 298 649 339 Absorbed by Shields . | . . . . Redirected to Core 854 | . 209 380 265 Core Remaining (%) 86 | 100 70 88 . Volleys Fired 125 | . 18 72 35 Largest 3 | . 2 3 3 Hottest 198 | . 70 198 193 Shots Fired 232 | . 22 122 88 Gun 171 | . 14 69 88 Cannon 61 | . 8 53 . Launcher . | . . . . Special . | . . . . Kinetic 61 | . 22 39 . Thermal 136 | . . 63 73 Explosive . | . . . . Electromagnetic 35 | . . 20 15 Robot Hit Streak 36 | . 3 30 36 Robot Miss Streak 3 | . 3 3 1 Penetration Max . | . . . . Secondary Targets 4 | . . 1 3 Max Gunslinging Chain 1 | . . 1 1 Shots Hit Robots 186 | . 11 101 74 Core Hits 82 | . 6 46 30 Critical Hits . | . . . . Critical Kills . | . . . . Critical Parts Destroyed . | . . . . Melee Attacks . | . . . . Impact . | . . . . Slashing . | . . . . Piercing . | . . . . Sneak Attacks . | . . . . Combat Hostiles . | . . . . Follow-up Attacks . | . . . . Damage Inflicted 3069 | . 170 1737 1162 Guns 2147 | . 109 876 1162 Cannons 910 | . 49 861 . Explosions . | . . . . Melee . | . . . . Ramming 12 | . 12 . . Kinetic 569 | . 158 411 . Thermal 1886 | . . 981 905 Explosive . | . . . . Electromagnetic 602 | . . 345 257 Impact . | . . . . Slashing . | . . . . Piercing . | . . . . Highest Corruption 1 | . . 1 . Average Corruption 1 | . . 1 . Corruption Purged . | . . . . Effects 2 | . . 2 . Energy Discharges 1 | . . 1 . Targeting Errors 1 | . . 1 . Overload Shots . | . . . . Overflow Damage 4 | . . 4 . Projectiles 4 | . . 4 . Explosions . | . . . . Melee . | . . . . Knockbacks 3 | . . 3 . Impact . | . . . . Kinetic 2 | . . 2 . Secondary 1 | . . 1 . Self-Inflicted Damage 3 | . 3 . . Shots . | . . . . Rammed 6 | . 6 . . Targets Rammed 8 | . 8 . . Kicked 2 | . 2 . . Crushed . | . . . . Highest Temperature 590 | . 18 590 315 Average Temperature 116 | . 8 138 78 Received Heat Transfer 357 | . . 222 135 Effects 9 | . . 9 . Shutdowns 3 | . . 3 . Energy Bleed 2 | . . 2 . Matter Decay 1 | . . 1 . Short Circuit 1 | . . 1 . Damage (minor) 1 | . . 1 . Damage (core) 1 | . . 1 . Siege Activations . | . . . . Robots Corrupted . | . . . . Combat Hostiles . | . . . . Parts Fried 1 | . . 1 . Impact Corruptions . | . . . . Robots Melted 1 | . . . 1 Combat Hostiles 1 | . . . 1 Parts Melted 4 | . . 1 3 Heat Transferred 4033 | . . 1924 2109 Parts Sabotaged . | . . . . Parts Stolen . | . . . . Parts Stripped . | . . . . Power Chain Reactions . | . . . . Missiles Intercepted . | . . . . Alert | -11 -10 -9 -8 ------- Run | Scr Mat Mat Mat Peak Influence 256 | . 146 224 256 Average Influence 95 | . 71 93 108 Maximum Alert Level 1 | . . 1 1 Low Security (%) 91 | 100 100 89 92 Level 1 8 | . . 10 7 Level 2 . | . . . . Level 3 . | . . . . Level 4 . | . . . . Level 5 . | . . . . High Security . | . . . . Max Security . | . . . . Squads Dispatched 5 | . . 3 2 Investigation 5 | . . 3 2 Extermination . | . . . . Reinforcement . | . . . . Assault . | . . . . Garrison . | . . . . Intercept . | . . . . Construction Impeded . | . . . . Haulers Reinforced . | . . . . Stealth | -11 -10 -9 -8 --------- Run | Scr Mat Mat Mat Distress Signals 5 | . 1 1 3 Communications Jammed 10 | . . . 10 Distress Signals 10 | . . . 10 Times Spotted 60 | . 12 26 22 Peak Tracking Total 7 | . 4 7 3 Tactical Retreats 3 | . 1 1 1 Traps | -11 -10 -9 -8 ------- Run | Scr Mat Mat Mat Traps Triggered . | . . . . Indirectly . | . . . . Trap Hack Attempts . | . . . . Triggered . | . . . . Disarmed . | . . . . Reprogrammed . | . . . . Reused . | . . . . Traps Extracted . | . . . . Installed . | . . . . Triggered . | . . . . Machines | -11 -10 -9 -8 ---------- Run | Scr Mat Mat Mat Machines Disabled 4 | . 3 1 . Max in Single Turn 1 | . 1 1 . Machines Sabotaged . | . . . . Garrisons Compromised . | . . . . Overloaded Fab Kills . | . . . . Fab Network Shutdowns . | . . . . Hacking | -11 -10 -9 -8 --------- Run | Scr Mat Mat Mat Machines Accessed 10 | . 2 7 1 Terminals 9 | . 2 6 1 Fabricators . | . . . . Repair Stations . | . . . . Recycling Units 1 | . . 1 . Scanalyzers . | . . . . Garrison Access . | . . . . Total Hacks 40 | . 5 26 9 Successful 21 | . 3 12 6 Failed 18 | . 2 14 2 Catastrophic . | . . . . Database Lockouts 1 | . . . 1 Manual 27 | . 3 18 6 Terminals 38 | . 5 24 9 Fabricators . | . . . . Repair Stations . | . . . . Recycling Units 2 | . . 2 . Scanalyzers . | . . . . Garrison Access . | . . . . Terminal Hacks 19 | . 3 10 6 Record 1 | . . 1 . Robot Analysis 5 | . 1 2 2 Prototype ID Bank 7 | . 1 4 2 Terminal Index 4 | . 1 2 1 Surveillance Status 1 | . . . 1 Zone Layout 1 | . . 1 . Fabricator Hacks . | . . . . Repair Station Hacks . | . . . . Recycling Unit Hacks 2 | . . 2 . Retrieve Matter 2 | . . 2 . Scanalyzer . | . . . . Garrison Access Hacks . | . . . . Unauthorized Hacks . | . . . . Terminals . | . . . . Fabricators . | . . . . Repair Stations . | . . . . Recycling Units . | . . . . Scanalyzers . | . . . . Garrison Access . | . . . . Data Cores Recovered . | . . . . Used . | . . . . Hacking Detections 10 | . 2 7 1 Full Trace Events 5 | . . 4 1 Feedback Events 1 | . . 1 . Corruption 1 | . . 1 . Feedback Blocked . | . . . . Robot Schematics Acquired . | . . . . Robots Built . | . . . . Matter . | . . . . Time . | . . . . Total Robot Build Rating . | . . . . Part Schematics Acquired . | . . . . Parts Built . | . . . . Matter . | . . . . Time . | . . . . Total Part Build Rating . | . . . . Parts Repaired . | . . . . Time . | . . . . Parts Recycled . | . . . . Recycled Matter . | . . . . Retrieved Matter 86 | . . 86 . Retrieved Components . | . . . . Parts Scanalyzed . | . . . . Part Schematics Acquired . | . . . . Parts Damaged . | . . . . Bothacking | -11 -10 -9 -8 ------------ Run | Scr Mat Mat Mat Used RIF Installer . | . . . . Robots Hacked . | . . . . Non-combat . | . . . . Combat . | . . . . Robot Hacks Applied . | . . . . Relay Couplers Released . | . . . . Robots Rewired . | . . . . Allies Hacked . | . . . . Hacks Repelled . | . . . . Allies | -11 -10 -9 -8 -------- Run | Scr Mat Mat Mat Total Allies . | . . . . Largest Group . | . . . . Highest-Rated Group . | . . . . Highest-Rated Ally . | . . . . Total Orders . | . . . . Ally Attacks . | . . . . Total Damage . | . . . . Kills . | . . . . Allies Corrupted . | . . . . Allies Melted . | . . . . Intel | -11 -10 -9 -8 ------- Run | Scr Mat Mat Mat Robot Analysis Total 5 | . 1 2 2 Derelict Logs Recovered . | . . . . Drone Launches . | . . . . Drone Recoveries . | . . . . Exploration | -11 -10 -9 -8 ------------- Run | Scr Mat Mat Mat Turns Passed 2865 | 38 251 1625 951 Spaces Moved 1479 | 33 136 824 486 Core 8 | 8 . . . Treads . | . . . . Legs 1471 | 25 136 824 486 Wheels . | . . . . Hover . | . . . . Flight . | . . . . Fastest Speed 50 | 50 120 120 150 Average Speed 144 | 103 141 143 150 Slowest Speed 150 | 120 150 150 150 Overloaded Moves . | . . . . Propulsion Burnouts . | . . . . Robots Hopped . | . . . . Cave-ins Triggered . | . . . . Exploration Rate (%) 24 | 3 27 40 29 Regions Visited 3 Branch Regions . Pre-discovered Areas . | . . . . Known Exits Taken 1 | . . 1 . Unknown Exits Taken 2 | 1 1 . . Scrap Searched . | . . . . Spaces Dug . | . . . . Terrain Destroyed . | . . . . Melee . | . . . . Projectile . | . . . . AOE . | . . . . Actions | -11 -10 -9 -8 --------- Run | Scr Mat Mat Mat Total 1992 | 35 169 1154 634 Wait 246 | . . 163 83 Move 1476 | 32 135 823 486 Hop . | . . . . Pick Up 27 | . 5 15 7 Fast Attach 11 | 3 . 8 . Attach 8 | . 2 5 1 Detach 1 | . . 1 . Swap 12 | . 1 9 2 Drop 23 | . . 19 4 Fire 125 | . 18 72 35 Melee . | . . . . Ram . | . . . . Kick 8 | . 8 . . Crush . | . . . . Escape Stasis . | . . . . Rewire . | . . . . Trap . | . . . . Miscellaneous 55 | . . 39 16 Route ------- -11/Scrapyard -10/Materials -9/Materials (discovered 2 exits: *Mat x2) -8/Materials History --------- Turn | Location | Event 2 | -11/Scrapyard | Met Revision 17 3 | -11/Scrapyard | Discovered new exit (range 14) 39 | -11/Scrapyard | Entered Materials 56 | -10/Materials | Upgraded with Power slot (x1) 56 | -10/Materials | Upgraded with Propulsion slot (x1) 56 | -10/Materials | Upgraded with Utility slot (x1) 56 | -10/Materials | Upgraded with Weapon slot (x1) 130 | -10/Materials | Discovered new exit (range 10) 290 | -10/Materials | Entered another Materials area 292 | -9/Materials | Reached level 2 292 | -9/Materials | Reached level 3 316 | -9/Materials | Build established: Mutant 702 | -9/Materials | Reached level 4 729 | -9/Materials | Upgraded with Weapon slot (x1) 1032 | -9/Materials | Destroyed 7 combat bots 1348 | -9/Materials | Core integrity fell below 50% 1404 | -9/Materials | Discovered new exit (range 15) 1595 | -9/Materials | Reached level 5 1831 | -9/Materials | Discovered new exit (range 16) 1912 | -9/Materials | Identified exit to Materials 1915 | -9/Materials | Entered another Materials area 1917 | -8/Materials | Reached level 6 1917 | -8/Materials | Reached level 7 1918 | -8/Materials | Upgraded with Utility slot (x1) 2232 | -8/Materials | Build established: Hauler-Gunner 2272 | -8/Materials | Central database locked down 2682 | -8/Materials | Build established: Hauler-Mutant 2781 | -8/Materials | Reached level 8 2786 | -8/Materials | Upgraded with Utility slot (x1) 2866 | -8/Materials | Self-destructed Last Messages --------------- Destroyed Imp. Hover Unit. Reached level 8. Visual Processing Unit melted. W-25 Informer destroyed. Switching to secondary target: Y-45 Defender. W-25 Informer distress signal jammed. Upgraded: Utility Slot (+1) W-25 Informer destroyed. R-06 Scavenger collects Imp. Hover Unit. R-06 Scavenger collects Lgt. Deuterium Engine. Destroyed Particle Gun. G-47 Trooper heat damages Imp. Heat Sink. G-47 Trooper critical meltdown. Destroyed Beam Rifle. Y-45 Defender destroyed. A-02 Transporter destroyed. W-25 Informer distress signal jammed. R-06 Scavenger collects Weight Redist. System. W-25 Informer distress signal jammed. [Achievement: Total Silence] Map ----- +----------------------------------------------------+ | ?????????????????????????????????# #?????# | | ?????????????????????????????????# """" #?????# | | ?????????????????????????????????# * """" #????# | | ?????????????????????????????????# """" ##????# | | ?????????????????????????????????#/ #?????# | | ?????????????????????????????????##########?????# | | ????????????????????????????????????# ####### | | ????????????????????????????????????# | | ?????????????????????????????????? | | ????????????????????????????????????# | | ????????????????????????????????????# ######## | | ????????????????????????????????????####?????????# | | ?????????????????????????????????????????????????# | | ?????????????????????????????????????????????????# | | ???????????????????????????????????????????????### | | ?????????????????????????????????############### | | ?????????????????????????????????# | | ?????????????????????????????????# | | ?????????????????????????????????# | | ????????????????????########?????# ########### | | ????????????????????# #?????# #?????????### | | ????????????????????# ###???# #?????????#! | | ????????????????????# = + #???# #?????????# | | ????????????????????# # #???# #?????????#"" | | ??????????????????#[######## ##### #?????????#"" | | ??????????????????#[%%[[[@ r w #?????????#"" | | ??????????????????#######/##u######+######?????# | | ????????????????????# # # #?????### | | ????????????????????# # # """ """ #???????? | | ????????????????????# """ ]# # """ """ #???????? | | ????????????????????# """ # # """ """ #???????? | | ????????????????????# """ # # #???????? | | ????????????????????# !# # = =#???????? | | ????????????????????######## # #???????? | | ???????????????????????????#/#############???????? | | ?????????????????????????? #??????????????????? | | ???????????????????????? #??????????????????? | | ?????????????????????? #??????????????????? | | ????????????????????# % #??????????????????? | | ????????????????????# #??????????????????? | | ????????????????????# #??????????????????? | | ????????????????????# #??????????????????? | | ????????????????????# #??????????????????? | | ????????????????????####/######??????????????????? | | ??????????????????????? ????????????????????????? | | ??????????????????????? ????????????????????????? | | ?????????????????????? ?????????????????????????? | | ?????????????????????? ?????????????????????????? | | ?????????????????????????????????????????????????? | | ?????????????????????????????????????????????????? | +----------------------------------------------------+ Best States ------------- Heat Dissipation 47 Energy Generation 23 Energy Capacity 460 Matter Stores 300 Matter Capacity 300 Sight Range 16 Terrain Scan Density 10 Jamming Range 8 Resistance: KI 30 Resistance: TH 25 Resistance: EX 30 Resistance: EM 20 Resistance: I 20 Resistance: S 20 Resistance: P 20 Evasion (%) 40 Targeting Accuracy 8 Offensive Hacking 10 Item Schematics ----------------- None Robot Schematics ------------------ None Fabricated ------------ Nothing Alien Tech Used ----------------- None Achievements -------------- Armchair Analyst Total Silence Challenges ------------ None RPGLIKE | -11 -10 -9 -8 --------- Run | Scr Mat Mat Mat Levels Raised 7 | . . 4 3 XP Earned 14833 | 4000 405 6360 4068 XP Spent 13790 | . 3980 5950 3860 Upgrades 31 | . 15 10 6 Power Slot 1 | . 1 . . Propulsion Slot 1 | . 1 . . Utility Slot 3 | . 1 . 2 Weapon Slot 2 | . 1 1 . Core Integrity 8 | . 8 . . Heat Dissipation 3 | . . . 3 Inventory Capacity 7 | . 3 3 1 Ranged Accuracy 1 | . . 1 . KI Resistance % 2 | . . 2 . TH Resistance % 1 | . . 1 . EX Resistance % 2 | . . 2 . Protomatter Created 443 | . . 311 132 Integrity Restored 1172 | . . 834 338 Core 1151 | . . 834 317 Parts 21 | . . . 21 Protomatter Decayed 63 | . . 45 18 Game ------ Seed ModifiedUtilityThruster Manual? 0 Play Time 00:43:39 Cumulative 8.1 hours Start 2019.12.30 @ 21:24:09 End 2019.12.31 @ 19:37:02 Sessions 3 Manual Loads 0 Difficulty Adventurer Special Mode Winter2019/RPGLIKE Game No. 11 Rogue 0 Adventurer 11 Explorer 0 Win Type - Total 0 Types 0/0/0/0/0/0/0 Lore% 17 Gallery% 11 Achievement% 14 Wizard Run 0 Options --------- ASCII 0 Keyboard 0 Movement Arrows Keybinds 0 Fullscreen 1 Font 16/Terminus Map View 76x50 Tactical HUD 0 Map Filters NONE Filters NONE Steam 1 RUN: 2e01ff02-039d-42d4-a894-49ed43abd76c